bitfinex/quotes_SOLUSD_20250908
["timestamp","ask_amount","ask_price","bid_price","bid_amount"]
[1757309243934,42.85990022,207.44,207.43,0.03]
[1757309244644,43.54990022,207.44,207.43,0.03]
[1757309246524,6.38990022,207.44,207.43,0.03]
[1757309246724,43.54990022,207.44,207.43,0.03]
[1757309247419,6.38990022,207.44,207.43,0.03]
[1757309247620,43.52990022,207.44,207.43,0.03]
[1757309247815,39.07129421,207.44,207.43,0.03]
[1757309248129,43.5295273,207.44,207.43,0.03]
[1757309248652,41.59860601,207.44,207.43,0.03]
[1757309249938,46.41927704,207.44,207.43,0.03]
[1757309252538,4.45860601,207.44,207.43,0.03]
[1757309252746,40.90860601,207.44,207.43,0.03]
[1757309253445,3.76860601,207.44,207.43,0.03]
[1757309253744,40.90860601,207.44,207.43,0.03]
[1757309254322,41.59860601,207.44,207.43,0.03]
[1757309254949,46.41927704,207.44,207.43,0.03]
[1757309255331,48.35047801,207.44,207.43,0.03]
[1757309257327,11.21047801,207.44,207.43,0.03]
[1757309257646,48.33047801,207.44,207.43,0.03]
[1757309259532,48.39047801,207.44,207.43,0.03]
[1757309260148,78.39047801,207.44,207.43,0.03]
[1757309264860,37.501872,207.44,207.43,0.03]
[1757309265159,73.54980698,207.44,207.43,0.03]
[1757309265453,35.75980698,207.44,207.43,0.03]
[1757309265753,40.92860601,207.44,207.43,0.03]
[1757309269870,40.92860601,207.44,207.43,0.03]
[1757309278180,40.86860601,207.44,207.43,0.03]
[1757309279154,41.57860601,207.44,207.43,0.03]
[1757309280242,0.06,207.44,207.43,0.03]
[1757309280448,3.82860601,207.44,207.43,0.7]
[1757309280754,37.1,207.44,207.43,0.7]
[1757309281057,37.1,207.44,207.43,0.03]
[1757309281458,0.06,207.44,207.43,0.7]
[1757309281653,37.1,207.44,207.43,0.7]
[1757309282660,37.1,207.44,207.43,0.03]
[1757309284252,40.86860601,207.44,207.43,0.03]
[1757309285466,37.1,207.44,207.43,0.03]
[1757309285670,40.86860601,207.44,207.43,0.03]
[1757309286463,39.51242394,207.44,207.43,0.03]
[1757309287782,37.1,207.44,207.43,0.03]
[1757309288775,37.06,207.44,207.43,0.74]
[1757309290067,37.06,207.44,207.43,0.03]
[1757309292374,37.75,207.44,207.43,0.03]
[1757309292579,37.06,207.44,207.43,0.03]
[1757309296264,40.16242394,207.44,207.43,0.03]
[1757309304391,3.16242394,207.44,207.43,0.03]
[1757309304684,40.16242394,207.44,207.43,0.03]
[1757309305067,37.06,207.44,207.43,0.03]
[1757309305994,0.06,207.44,207.43,0.03]
[1757309306298,37.75,207.44,207.43,0.03]
[1757309307599,37.06,207.44,207.43,0.03]
[1757309310577,37.75,207.44,207.43,0.03]
[1757309314999,37.06,207.44,207.43,0.03]
[1757309318190,37.71,207.44,207.43,0.03]
[1757309318805,37.06,207.44,207.43,0.03]
[1757309319283,37.71,207.44,207.43,0.03]
[1757309319483,37.06,207.44,207.43,0.03]
[1757309322305,37.71,207.44,207.43,0.03]
[1757309322789,37.06,207.44,207.43,0.03]
[1757309326509,0.06,207.44,207.43,0.03]
[1757309326699,0.06,207.44,207.43,3.14242394]
[1757309326900,37.06,207.44,207.43,19.15044189]
[1757309327715,0.06,207.44,207.43,19.15044189]
[1757309329319,0.06,207.44,207.43,23.97134532]
[1757309330999,0.06,207.44,207.43,50.50892138]
[1757309331211,0.06,207.44,207.43,52.92134532]
[1757309333010,0.06,207.44,207.43,133.02134532]
[1757309338435,0.71,207.44,207.43,2.44242394]
[1757309338814,3.12242394,207.44,207.43,2.44242394]
[1757309339013,3.12242394,207.44,207.43,0.03]
[1757309343037,40.32242394,207.44,207.43,0.03]
[1757309344331,45.14309497,207.44,207.43,0.03]
[1757309344949,37.91,207.44,207.43,0.03]
[1757309345144,40.32242394,207.44,207.43,0.03]
[1757309345320,40.82242394,207.44,207.43,0.03]
[1757309346342,42.18004106,207.44,207.43,0.03]
[1757309352151,47.00071209,207.44,207.43,0.03]
[1757309354853,42.18004106,207.44,207.43,0.03]
[1757309361039,0.56,207.44,207.43,0.03]
[1757309361245,41.45004106,207.44,207.43,0.03]
[1757309361853,37.68,207.44,207.43,0.03]
[1757309363645,0.56,207.44,207.43,0.03]
[1757309363860,37.66,207.44,207.43,0.03]
[1757309365057,0.06,207.44,207.43,0.68]
[1757309365365,37.16,207.44,207.43,0.68]
[1757309365541,0.06,207.44,207.43,5.50090343]
[1757309365742,0.06,207.44,207.43,22.8665385]
[1757309366062,37.16,207.44,207.43,22.8665385]
[1757309366255,0.06,207.44,207.43,22.8665385]
[1757309366459,37.18,207.44,207.43,22.8665385]
[1757309370675,0.06,207.44,207.43,102.9665385]
[1757309370866,37.16,207.44,207.43,102.9665385]
[1757309373751,37.16,207.44,207.43,102.3165385]
[1757309374985,37.16,207.44,207.43,102.9665385]
[1757309376077,0.06,207.44,207.43,102.9665385]
[1757309382374,0.06,207.44,207.43,131.2665385]
[1757309382687,0.06,207.44,207.43,102.3165385]
[1757309386382,0.06,207.44,207.43,103.0265385]
[1757309390677,0.06,207.44,207.43,102.3165385]
[1757309390878,0.72,207.44,207.43,102.3165385]
[1757309391183,0.06,207.44,207.43,102.3165385]
[1757309393486,0.06,207.44,207.43,129.0265385]
[1757309393868,0.06,207.47,207.46,39.59559401]
[1757309394081,0.06,207.47,207.46,43.36563507]
[1757309394389,0.06,207.47,207.46,44.07563507]
[1757309396690,0.06,207.47,207.46,48.89584137]
[1757309397504,0.06,207.47,207.46,48.18584137]
[1757309398390,0.06,207.47,207.46,128.99584137]
[1757309399192,0.06,207.47,207.46,128.28584137]
[1757309402572,0.06,207.47,207.46,142.75936688]
[1757309408404,0.06,207.47,207.46,141.39903299]
[1757309411205,0.77,207.47,207.46,14.47352551]
[1757309411584,3.17970717,207.47,207.46,13.75352551]
[1757309411891,3.17970717,207.47,207.43,0.03]
[1757309412092,2.40970717,207.46,207.43,0.03]
[1757309412293,37.2,207.45,207.43,0.03]
[1757309412496,37.91,207.45,207.43,0.03]
[1757309412810,39.84054851,207.45,207.43,0.03]
[1757309413310,39.84054851,207.45,207.43,26.03]
[1757309413515,0.71,207.44,207.43,26.03]
[1757309413813,0.71,207.44,207.43,0.03]
[1757309416412,3.11970717,207.44,207.43,0.03]
[1757309416911,5.05053526,207.44,207.43,0.03]
[1757309417500,42.25053526,207.44,207.43,0.03]
[1757309418411,47.07120629,207.44,207.43,0.03]
[1757309419491,47.05120629,207.44,207.43,0.03]
[1757309420407,47.55120629,207.44,207.43,0.03]
[1757309423108,42.71053526,207.44,207.43,0.03]
[1757309424315,40.30082809,207.44,207.43,0.03]
[1757309424502,42.71053526,207.44,207.43,0.03]
[1757309425021,5.55053526,207.44,207.43,0.03]
[1757309425215,42.71053526,207.44,207.43,0.03]
[1757309430113,47.53120629,207.44,207.43,0.03]
[1757309432209,42.71053526,207.44,207.43,0.03]
[1757309432601,2.43082809,207.44,207.43,0.75]
[1757309432808,41.96053526,207.44,207.43,0.75]
[1757309434334,41.96053526,207.44,207.43,0.03]
[1757309435047,42.67053526,207.44,207.43,0.03]
[1757309436932,47.49120629,207.44,207.43,0.03]
[1757309437430,41.96053526,207.44,207.43,0.03]
[1757309437736,41.94053526,207.44,207.43,0.03]
[1757309438113,42.65053526,207.44,207.43,0.03]
[1757309438314,41.94053526,207.44,207.43,0.03]
[1757309438921,4.84053526,207.44,207.43,0.03]
[1757309439128,41.94053526,207.44,207.43,0.03]
[1757309441041,41.92053526,207.44,207.43,0.03]
[1757309445243,46.74120629,207.44,207.43,0.03]
[1757309446145,46.24120629,207.44,207.43,0.03]
[1757309447518,46.22120629,207.44,207.43,0.03]
[1757309449231,46.93120629,207.44,207.43,0.03]
[1757309450431,44.52149912,207.44,207.43,0.03]
[1757309450630,46.93120629,207.44,207.43,0.03]
[1757309453426,76.93120629,207.44,207.43,0.03]
[1757309453630,39.87120629,207.44,207.43,0.03]
[1757309453846,76.91120629,207.44,207.43,0.03]
[1757309454343,39.87120629,207.44,207.43,0.03]
[1757309454550,76.91120629,207.44,207.43,0.03]
[1757309464144,73.79149912,207.44,207.43,0.03]
[1757309464350,76.91120629,207.44,207.43,0.03]
[1757309465088,39.87120629,207.44,207.43,0.03]
[1757309465270,76.91120629,207.44,207.43,0.03]
[1757309468751,86.55003497,207.44,207.42,0.03]
[1757309468971,12.04853585,207.42,207.41,0.03]
[1757309469175,53.9096717,207.42,207.41,0.03]
[1757309469383,54.5996717,207.42,207.41,0.03]
[1757309469873,86.53124569,207.42,207.41,0.03]
[1757309470370,82.0275879,207.42,207.41,0.03]
[1757309471493,82.5275879,207.42,207.41,0.03]
[1757309472169,86.45918818,207.42,207.41,0.03]
[1757309473490,82.5275879,207.42,207.41,0.03]
[1757309474466,81.8375879,207.42,207.41,0.03]
[1757309475577,78.06514887,207.42,207.41,0.03]
[1757309476890,81.8375879,207.42,207.41,0.03]
[1757309477772,82.5275879,207.42,207.41,0.03]
[1757309479693,81.8375879,207.42,207.41,0.03]
[1757309480993,81.8975879,207.42,207.41,0.03]
[1757309482778,41.08514887,207.42,207.41,0.71]
[1757309483194,78.12514887,207.42,207.41,0.71]
[1757309483384,41.08514887,207.42,207.41,0.71]
[1757309483586,78.12514887,207.42,207.41,0.71]
[1757309484702,100.35270984,207.42,207.41,0.71]
[1757309484899,104.12514887,207.42,207.41,0.71]
[1757309485093,99.30401302,207.42,207.41,0.71]
[1757309485901,69.30401302,207.42,207.41,0.71]
[1757309487408,104.12514887,207.42,207.41,0.71]
[1757309489300,74.12514887,207.42,207.41,0.71]
[1757309489497,48.12514887,207.42,207.41,0.03]
[1757309489700,48.81514887,207.42,207.41,0.03]
[1757309490090,48.31514887,207.42,207.41,0.03]
[1757309490409,78.31514887,207.42,207.41,0.03]
[1757309491110,40.58514887,207.42,207.41,0.03]
[1757309491407,77.62514887,207.42,207.41,0.03]
[1757309493212,73.85270984,207.42,207.41,0.03]
[1757309493416,77.62514887,207.42,207.41,0.03]
[1757309495122,78.12514887,207.42,207.41,0.03]
[1757309496220,77.62514887,207.42,207.41,0.03]
[1757309496900,40.58514887,207.42,207.41,0.03]
[1757309497097,31.27157399,207.42,207.41,0.72]
[1757309497303,67.1,207.42,207.41,0.72]
[1757309498022,37.1,207.42,207.41,0.72]
[1757309499598,37.1,207.42,207.41,9.31380733]
[1757309500211,37.1,207.42,207.41,5.5413683]
[1757309500413,0.06,207.42,207.41,0.72]
[1757309500626,37.08,207.42,207.41,0.72]
[1757309503510,41.50243903,207.42,207.41,0.03]
[1757309504021,43.43364,207.42,207.41,0.03]
[1757309506116,42.78364,207.42,207.41,0.03]
[1757309508020,48.25477585,207.42,207.41,0.03]
[1757309511627,78.25477585,207.42,207.41,0.03]
[1757309513817,41.23477585,207.42,207.41,0.03]
[1757309514131,72.78364,207.42,207.41,0.03]
[1757309514430,73.43364,207.42,207.41,0.03]
[1757309514603,72.78364,207.42,207.41,0.03]
[1757309515725,73.43364,207.42,207.41,0.03]
[1757309515925,78.25477585,207.42,207.41,0.03]
[1757309519521,41.23477585,207.42,207.41,0.03]
[1757309519722,78.25477585,207.42,207.41,0.03]
[1757309521136,95.62280889,207.42,207.41,0.03]
[1757309525315,75.96088192,207.39,207.38,0.03]
[1757309525546,77.89273577,207.39,207.38,0.03]
[1757309526431,113.21456903,207.39,207.38,0.03]
[1757309526743,138.86474619,207.39,207.31,0.72]
[1757309527040,3.77243903,207.32,207.31,0.72]
[1757309527220,40.79243903,207.32,207.31,0.72]
[1757309528133,45.61590034,207.32,207.31,0.72]
[1757309528335,75.61590034,207.32,207.31,0.72]
[1757309528644,38.59590034,207.32,207.31,0.72]
[1757309528841,75.61590034,207.32,207.31,0.72]
[1757309531853,30.0,207.32,207.31,0.72]
[1757309532155,67.02,207.32,207.31,0.72]
[1757309532674,69.43510837,207.32,207.31,0.72]
[1757309533123,69.43510837,207.32,207.29,0.72]
[1757309533329,69.43510837,207.32,207.3,0.72]
[1757309533547,69.43510837,207.32,207.31,0.72]
[1757309534850,67.02,207.32,207.31,0.72]
[1757309535033,69.43510837,207.32,207.31,0.72]
[1757309537155,69.43510837,207.32,207.27,0.2]
[1757309537349,2.41510837,207.31,207.28,0.72]
[1757309537555,67.02,207.3,207.28,0.72]
[1757309537944,2.41510837,207.29,207.28,0.72]
[1757309543148,37.02,207.3,207.28,0.72]
[1757309543340,2.41510837,207.29,207.28,0.72]
[1757309543749,2.41510837,207.29,207.27,0.2]
[1757309543952,39.43510837,207.28,207.27,0.2]
[1757309544645,39.43510837,207.28,207.27,0.92]
[1757309545138,39.43510837,207.28,207.27,0.2]
[1757309545944,2.41510837,207.28,207.27,0.92]
[1757309546144,39.43510837,207.28,207.27,0.2]
[1757309546956,2.41510837,207.28,207.27,0.2]
[1757309547145,39.43510837,207.28,207.27,0.2]
[1757309548160,39.43510837,207.28,207.27,0.92]
[1757309548361,39.43510837,207.28,207.27,0.2]
[1757309549061,39.43510837,207.28,207.27,0.92]
[1757309551045,26.0,207.25,207.24,0.03]
[1757309551368,26.0,207.25,207.1,0.2]
[1757309551369,26.0,207.2,207.12,0.72]
[1757309551663,2.41510837,207.13,207.1,0.2]
[1757309551841,2.41510837,207.11,207.1,0.2]
[1757309552044,2.41510837,207.11,207.1,0.92]
[1757309552353,37.26,207.11,207.1,0.2]
[1757309552564,50.05554185,207.11,207.1,0.2]
[1757309552751,62.13321781,207.11,207.1,0.2]
[1757309552940,54.87321781,207.11,207.1,0.2]
[1757309553145,42.79767596,207.11,207.1,0.2]
[1757309553347,45.21278433,207.11,207.1,0.2]
[1757309553554,87.42113641,207.11,207.1,0.2]
[1757309553953,97.08156989,207.11,207.1,0.2]
[1757309554151,109.15245009,207.11,206.99,0.72]
[1757309554350,2.41510837,207.02,207.0,0.72]
[1757309554555,37.54,207.01,207.0,0.72]
[1757309554751,37.58,207.01,207.0,0.72]
[1757309554953,37.58,207.01,207.0,5.55091787]
[1757309555273,2.41510837,207.04,207.0,5.55091787]
[1757309555274,37.58,207.04,207.01,13.59559401]
[1757309555573,37.58,207.04,207.02,0.68]
[1757309555866,37.58,207.04,207.02,3.09510837]
[1757309556075,37.58,207.04,207.02,0.68]
[1757309556281,2.41510837,207.08,207.03,3.09510837]
[1757309556456,37.64,207.07,207.04,0.68]
[1757309556658,37.64,207.07,207.05,4.82975126]
[1757309556862,37.64,207.07,207.06,0.68]
[1757309557063,2.41510837,207.09,207.06,0.68]
[1757309557373,2.41510837,207.09,207.05,4.82975126]
[1757309557374,37.62,207.08,207.05,4.82975126]
[1757309557577,37.62,207.08,207.01,13.59559401]
[1757309557578,37.62,207.08,207.02,0.68]
[1757309557776,37.62,207.08,207.04,0.68]
[1757309558072,2.41510837,207.08,207.04,0.68]
[1757309558285,37.64,207.07,207.04,0.68]
[1757309558452,40.05510837,207.07,207.04,0.68]
[1757309558657,2.41510837,207.08,207.05,0.68]
[1757309558957,37.66,207.07,207.06,0.68]
[1757309559166,67.66,207.07,207.05,4.82975126]
[1757309559679,34.44251125,207.11,207.06,0.68]
[1757309559884,40.05510837,207.1,207.07,0.68]
[1757309560054,30.0,207.08,207.07,0.68]
[1757309560254,30.0,207.08,207.06,2.41510837]
[1757309560461,37.64,207.07,207.06,2.41510837]
[1757309560769,30.0,207.08,207.07,5.50928478]
[1757309560960,30.0,207.08,207.07,7.92439315]
[1757309561171,67.66,207.08,207.07,5.50928478]
[1757309561361,37.66,207.08,207.07,7.92439315]
[1757309562256,37.66,207.08,207.07,5.50928478]
[1757309563257,37.66,207.08,207.07,7.92439315]
[1757309564669,37.64,207.08,207.07,7.92439315]
[1757309565373,37.64,207.09,207.07,7.92439315]
[1757309565565,37.64,207.1,207.09,13.59559401]
[1757309565750,37.64,207.1,207.09,16.69070238]
[1757309566157,37.62,207.12,207.09,14.27559401]
[1757309566359,14.114183,207.14,207.1,0.68]
[1757309566662,14.114183,207.14,207.13,2.41510837]
[1757309566863,51.734183,207.14,207.13,3.09510837]
[1757309567356,51.734183,207.14,207.13,5.50788586]
[1757309567558,51.734183,207.14,207.13,7.92299423]
[1757309567759,35.46,207.22,207.14,13.59559401]
[1757309567979,37.64,207.21,207.17,2.41510837]
[1757309568358,37.64,207.21,207.18,0.68]
[1757309568560,34.76,207.22,207.19,3.09510837]
[1757309568879,0.06,207.2,207.19,2.41510837]
[1757309569259,37.7,207.2,207.19,3.09510837]
[1757309569456,37.7,207.2,207.19,7.92159613]
[1757309569791,0.06,207.2,207.19,21.51719014]
[1757309570583,37.84,207.25,207.2,13.59559401]
[1757309570785,37.84,207.26,207.22,13.59559401]
[1757309570983,37.84,207.26,207.23,2.41510837]
[1757309571176,38.54,207.26,207.23,2.41510837]
[1757309571480,37.84,207.26,207.24,2.41510837]
[1757309572477,37.84,207.26,207.22,4.8255714]
[1757309572678,37.84,207.26,207.23,2.41510837]
[1757309573187,0.7,207.25,207.2,18.42174195]
[1757309573397,0.7,207.25,207.2,0.68]
[1757309573398,37.82,207.24,207.2,0.68]
[1757309573566,0.7,207.23,207.19,4.82626731]
[1757309573764,0.7,207.23,207.21,2.41510837]
[1757309574179,37.82,207.24,207.21,2.41510837]
[1757309574384,38.52,207.24,207.21,2.41510837]
[1757309575300,0.7,207.23,207.19,2.41510837]
[1757309575477,0.7,207.22,207.19,2.41510837]
[1757309575896,40.93510837,207.24,207.19,2.41510837]
[1757309576093,0.7,207.23,207.19,2.41510837]
[1757309577185,0.7,207.23,207.19,4.82648776]
[1757309577387,0.7,207.23,207.19,7.24159613]
[1757309577594,0.7,207.23,207.19,7.92159613]
[1757309577786,0.7,207.23,207.19,5.50648776]
[1757309578992,0.7,207.23,207.19,0.68]
[1757309579500,0.7,207.23,207.19,5.50648568]
[1757309579798,40.23510837,207.24,207.2,0.68]
[1757309580100,38.52,207.24,207.19,7.24159405]
[1757309580305,0.7,207.23,207.19,5.50648568]
[1757309580474,0.7,207.25,207.2,0.68]
[1757309580801,37.76,207.24,207.2,0.68]
[1757309580988,0.7,207.23,207.19,7.24159405]
[1757309581192,40.17510837,207.24,207.19,7.24159405]
[1757309581385,0.7,207.23,207.19,7.24159405]
[1757309581813,0.7,207.23,207.19,7.92159405]
[1757309582315,40.17510837,207.24,207.18,16.01070238]
[1757309582502,0.7,207.23,207.18,16.01070238]
[1757309582823,0.7,207.23,207.19,0.68]
[1757309583503,0.7,207.23,207.19,5.50646483]
[1757309584582,4.5,207.21,207.19,0.68]
[1757309584778,4.5,207.21,207.18,4.82667654]
[1757309584995,40.83510837,207.2,207.15,16.01070238]
[1757309585219,0.7,207.19,207.14,82.51510837]
[1757309585408,0.7,207.19,207.14,3.06510837]
[1757309585599,3.11510837,207.19,207.14,0.65]
[1757309586182,3.11510837,207.19,207.14,5.47764155]
[1757309586388,3.11510837,207.19,207.14,7.89274992]
[1757309586788,3.11510837,207.19,207.15,0.65]
[1757309587104,2.41510837,207.17,207.11,0.65]
[1757309587403,0.7,207.19,207.13,2.41510837]
[1757309587404,37.7,207.16,207.13,2.41510837]
[1757309587605,37.7,207.16,207.13,3.06510837]
[1757309587782,37.7,207.16,207.13,0.65]
[1757309587983,37.7,207.16,207.13,3.06510837]
[1757309589110,37.7,207.16,207.13,7.89289452]
[1757309589291,3.09510837,207.18,207.13,7.89289452]
[1757309589494,37.72,207.15,207.13,7.89289452]
[1757309590412,37.72,207.15,207.13,5.47778615]
[1757309590709,37.72,207.15,207.13,7.89289452]
[1757309591207,37.72,207.15,207.13,5.47778615]
[1757309591396,37.72,207.15,207.13,7.89289452]
[1757309592314,37.72,207.15,207.13,5.47778615]
[1757309594518,37.72,207.15,207.13,4.82778615]
[1757309595218,37.72,207.15,207.12,4.82811896]
[1757309595396,37.72,207.15,207.12,8.60718023]
[1757309595598,37.72,207.15,207.12,9.25718023]
[1757309598621,37.72,207.15,207.12,5.47811896]
[1757309598915,37.72,207.15,207.12,9.25718023]
[1757309599115,0.06,207.19,207.13,4.42906127]
[1757309599308,37.64,207.18,207.14,3.77906127]
[1757309599509,0.68,207.17,207.14,8.60650933]
[1757309599814,0.68,207.16,207.14,4.82744806]
[1757309601508,0.68,207.16,207.13,3.77906127]
[1757309601715,37.6,207.15,207.13,8.6068814]
[1757309602219,37.6,207.15,207.13,4.82782013]
[1757309602611,37.6,207.15,207.1,92.20090576]
[1757309602612,38.28,207.15,207.11,4.82812027]
[1757309602815,38.28,207.15,207.11,5.47812027]
[1757309603125,37.6,207.15,207.12,0.65]
[1757309603497,37.6,207.15,207.12,4.42906127]
[1757309603703,37.6,207.15,207.13,4.82788586]
[1757309604104,37.6,207.15,207.13,8.60694713]
[1757309604306,37.6,207.15,207.13,9.25694713]
[1757309604516,37.58,207.16,207.14,18.02465528]
[1757309604724,37.58,207.17,207.15,4.42906127]
[1757309604915,37.58,207.17,207.16,4.42906127]
[1757309605919,0.06,207.19,207.16,9.25624798]
[1757309606224,0.06,207.19,207.18,3.77906127]
[1757309606427,37.64,207.19,207.17,0.65]
[1757309606608,37.64,207.19,207.16,4.82718671]
[1757309606609,37.64,207.19,207.18,4.42906127]
[1757309607428,0.06,207.19,207.18,9.25578199]
[1757309607605,0.06,207.19,207.18,4.82672072]
[1757309607806,0.06,207.19,207.18,8.60578199]
[1757309608514,0.06,207.19,207.18,4.82672072]
[1757309608732,0.06,207.19,207.18,5.47672072]
[1757309609116,37.64,207.19,207.18,5.47672072]
[1757309609318,37.64,207.19,207.18,4.82672072]
[1757309610131,37.62,207.19,207.18,4.82672072]
[1757309611216,0.06,207.19,207.18,4.82672072]
[1757309612529,0.06,207.19,207.18,18.02465528]
[1757309613435,0.06,207.19,207.18,22.851376]
[1757309614413,0.06,207.19,207.18,19.07231473]
[1757309614613,0.06,207.19,207.18,22.851376]
[1757309617431,0.06,207.19,207.18,22.201376]
[1757309618439,0.06,207.19,207.18,8.60578199]
[1757309620148,0.78,207.19,207.18,4.82672072]
[1757309620838,0.78,207.19,207.16,80.1]
[1757309621041,0.72,207.18,207.16,84.92718304]
[1757309621247,37.48,207.17,207.16,84.92718304]
[1757309621745,0.06,207.19,207.17,13.59559401]
[1757309621954,0.06,207.19,207.18,3.77906127]
[1757309622123,0.06,207.19,207.18,9.31578199]
[1757309623242,0.06,207.19,207.18,22.911376]
[1757309625149,0.06,207.19,207.18,22.941376]
[1757309625852,0.06,207.2,207.19,13.59559401]
[1757309626056,37.52,207.22,207.19,13.59559401]
[1757309626057,0.06,207.22,207.19,18.08465528]
[1757309626231,0.06,207.22,207.21,43.37465528]
[1757309626631,0.06,207.22,207.21,44.08465528]
[1757309626827,1e-08,207.22,207.21,44.08465528]
[1757309627028,1e-08,207.23,207.22,13.59559401]
[1757309627258,1e-08,207.23,207.22,18.08465528]
[1757309627924,1e-08,207.23,207.22,14.30559401]
[1757309628157,1e-08,207.23,207.22,22.91044429]
[1757309630429,1e-08,207.23,207.22,22.20044429]
[1757309631942,1e-08,207.23,207.22,4.82578901]
[1757309631943,0.72000001,207.23,207.22,4.82578901]
[1757309632144,0.72000001,207.23,207.22,8.60485028]
[1757309632453,1e-08,207.23,207.22,8.60485028]
[1757309634259,1e-08,207.23,207.22,4.82578901]
[1757309634468,0.72000001,207.23,207.22,8.60485028]
[1757309634837,1e-08,207.23,207.22,8.60485028]
[1757309637970,1e-08,207.23,207.22,9.31485028]
[1757309638144,0.72000001,207.23,207.2,4.82604289]
[1757309638345,0.72,207.22,207.2,4.82604289]
[1757309638556,0.72,207.21,207.2,4.82604289]
[1757309639165,0.72,207.21,207.18,88.73554926]
[1757309639358,0.72,207.21,207.19,3.77906127]
[1757309639562,0.72,207.22,207.19,8.60551195]
[1757309640181,1e-08,207.23,207.19,5.53645068]
[1757309640379,0.72000001,207.23,207.21,3.77906127]
[1757309641080,1e-08,207.23,207.22,4.48906127]
[1757309641374,1e-08,207.23,207.22,44.08465528]
[1757309641574,0.72,207.32,207.23,42.57559401]
[1757309641763,0.72,207.32,207.31,3.77906127]
[1757309641960,30.72,207.32,207.31,3.77906127]
[1757309642160,30.72,207.32,207.3,3.77906127]
[1757309642359,30.0,207.32,207.3,3.77906127]
[1757309642579,30.72,207.32,207.3,3.77906127]
[1757309644567,0.78,207.32,207.3,3.77906127]
[1757309644769,0.78,207.32,207.29,4.82414687]
[1757309644971,0.06,207.32,207.3,3.77906127]
[1757309645171,0.06,207.32,207.31,3.77906127]
[1757309646281,0.75,207.32,207.31,3.77906127]
[1757309647178,0.06,207.32,207.31,3.77906127]
[1757309647373,0.06,207.32,207.31,9.26275525]
[1757309653276,0.75,207.32,207.31,3.77906127]
[1757309654198,0.75,207.32,207.28,3.77906127]
[1757309654380,0.06,207.32,207.29,0.66]
[1757309654572,0.06,207.32,207.28,2.41456005]
[1757309654775,0.69,207.31,207.27,96.11015406]
[1757309655075,0.69,207.3,207.27,96.11015406]
[1757309655302,2.41456005,207.31,207.27,80.1]
[1757309655595,3.10456005,207.29,207.27,80.1]
[1757309655896,0.69,207.28,207.27,80.1]
[1757309656094,3.10456005,207.28,207.22,14.25559401]
[1757309656272,2.41456005,207.27,207.22,14.25559401]
[1757309656476,3.10456005,207.27,207.22,19.08137181]
[1757309657102,2.41456005,207.26,207.22,19.08137181]
[1757309657704,2.41456005,207.26,207.23,0.66]
[1757309658416,0.69,207.25,207.21,0.03]
[1757309658622,2.41456005,207.24,207.21,0.03]
[1757309659311,3.10456005,207.24,207.21,0.03]
[1757309661097,2.41456005,207.22,207.21,0.03]
[1757309661900,3.10456005,207.22,207.21,0.03]
[1757309665206,2.41456005,207.22,207.21,0.03]
[1757309665801,38.05,207.24,207.21,0.03]
[1757309665998,2.41456005,207.22,207.21,0.03]
[1757309666823,3.10456005,207.22,207.21,0.03]